Cogmind - Beta 10.2 --- EXPLORER MODE // 2020.11.22 @ 19:37:17 // Halloween2020/ForbiddenLore Player: HawkeyeFierce Result: Destroyed by Lightning with EMDS Performance ------------- Evolutions (6) 3000 Regions Visited (18) 3600 Robots Destroyed (241) 1205 Value Destroyed (11756) 11756 Prototype IDs (19) 380 Alien Tech Used (0) 0 Bonus (1240) 1240 TOTAL SCORE: 21181 Bonus ------- High Alert Combat Kills 475 Follower Combat Kills 174 Network Hubs Disabled 200 Met R17 at Cetus 500 Friendly Fire -109 Cogmind --------- Core Integrity 0/1150 Matter 300/300 Energy 92/100 System Corruption 33% Temperature Cool (0) Movement Core (50) Location -4/Hub_04(d) Parts ------- > --- POWER (3) -------- (None) > --- PROPULSION (4) --- (None) > --- UTILITY (9) ------ Improved Target Analyzer > --- WEAPON (4) ------- (None) > --- INVENTORY (4) ---- Light Antimatter Reactor Peak State ------------ > --- POWER ------------ Light Antimatter Reactor Quantum Reactor Quantum Reactor > --- PROPULSION ------- Heavy Siege Treads Centrium Heavy Treads > --- UTILITY ---------- Advanced Cryofiber Web Advanced Heat Sink Advanced Heat Sink Advanced Heat Sink High-capacity Storage Unit Improved Target Analyzer Improved Weapon Cycler Centrium Medium Armor Plating Centrium Medium Armor Plating > --- WEAPON ----------- Advanced Plasma Cannon Improved KE Penetrator Improved KE Penetrator Mass Driver > --- INVENTORY -------- Light Neutrino Core Reinforced Fission Core Advanced Heat Sink Advanced Matter Compressor Improved Arc Projector Quantum Rifle Heavy Disruptor Cannon Advanced Plasma Cannon Neutron Cannon Railgun [Rating: 144] Favorites ----------- Power Cold Fusion Reactor Engine Ion Engine Power Core Light Nuclear Core Reactor Cold Fusion Reactor Propulsion Light Treads Treads Light Treads Leg Aluminum Leg Wheel Wheel Utility Advanced Heat Sink Device Advanced Heat Sink Storage High-capacity Storage Unit Processor Targeting Computer Hackware Hacking Suite Protection Hardened Medium Armor Plating Weapon Advanced Plasma Cannon Energy Gun Cooled Plasma Rifle Energy Cannon Advanced Plasma Cannon Ballistic Gun Assault Rifle Ballistic Cannon Magnetic Acceleration Cannon Launcher Mini Grenade Launcher Build | -11 -10 -10 -10 -9 -8 -8 -7 -7 -7 -6 -5 -5 -5 -4 -4 -4 -4 -4 ------- Run | Scr Mat Min Exi Min Mat Sto Fac Was Fac Fac Fac Upp Upp Fac Ext Cet Arc Hub Slots Evolved 13 | . 1 . . . 4 . 2 . . 2 2 . . 2 . . . . Power 2 | . . . . . 1 . . . . . . . . 1 . . . . Propulsion 2 | . 1 . . . 1 . . . . . . . . . . . . . Utility 7 | . . . . . 2 . 2 . . 1 1 . . 1 . . . . Weapon 2 | . . . . . . . . . . 1 1 . . . . . . . Parts Attached 208 | 8 6 11 1 1 18 16 6 7 11 15 32 2 . 16 20 12 3 23 Power 34 | 1 1 . . 1 4 2 1 . 5 3 1 . . 1 5 5 . 4 Engine 9 | 1 1 . . 1 2 . 1 . 3 . . . . . . . . . Core 11 | . . . . . 2 2 . . 2 1 . . . . 2 . . 2 Reactor 14 | . . . . . . . . . . 2 1 . . 1 3 5 . 2 Propulsion 45 | 3 1 5 . . 5 8 . . 2 3 8 . . 3 1 1 . 5 Treads 24 | 1 . . . . . 4 . . 2 3 8 . . 3 1 1 . 1 Leg 14 | 2 1 2 . . 5 4 . . . . . . . . . . . . Wheel 7 | . . 3 . . . . . . . . . . . . . . . 4 Hover . | . . . . . . . . . . . . . . . . . . . Flight . | . . . . . . . . . . . . . . . . . . . Utility 65 | 2 2 . 1 . 3 3 5 5 2 5 6 2 . 8 10 5 . 6 Device 32 | . . . . . 2 . 2 2 2 4 2 2 . 4 5 3 . 4 Storage 6 | 1 2 . 1 . . . . . . . . . . 1 . . . 1 Processor 6 | 1 . . . . . 1 1 . . . . . . 1 2 . . . Hackware 1 | . . . . . . . 1 . . . . . . . . . . . Protection 20 | . . . . . 1 2 1 3 . 1 4 . . 2 3 2 . 1 Artifact . | . . . . . . . . . . . . . . . . . . . Weapon 64 | 2 2 6 . . 6 3 . 2 2 4 17 . . 4 4 1 3 8 Energy Gun 36 | 2 2 4 . . 4 1 . 2 1 2 11 . . 2 . 1 2 2 Energy Cannon 16 | . . . . . . 2 . . 1 2 3 . . 2 2 . 1 3 Ballistic Gun 7 | . . 1 . . 2 . . . . . 1 . . . . . . 3 Ballistic Cannon 4 | . . . . . . . . . . . 2 . . . 2 . . . Launcher 1 | . . 1 . . . . . . . . . . . . . . . . Special Weapon . | . . . . . . . . . . . . . . . . . . . Impact Weapon . | . . . . . . . . . . . . . . . . . . . Slashing Weapon . | . . . . . . . . . . . . . . . . . . . Piercing Weapon . | . . . . . . . . . . . . . . . . . . . Special Melee Weapon . | . . . . . . . . . . . . . . . . . . . Unidentified Prototypes 15 | . . . . . 2 2 . . . 3 2 . . 1 . 3 . 2 Parts Lost 45 | . . 5 . . . . . . 1 1 1 1 . 1 6 . . 29 Power 6 | . . . . . . . . . . . . . . . 1 . . 5 Propulsion 6 | . . 1 . . . . . . . . . . . . . . . 5 Utility 15 | . . . . . . . . . 1 1 1 1 . . 2 . . 9 Weapon 18 | . . 4 . . . . . . . . . . . 1 3 . . 10 Highest Loss Streak 25 | . . 4 . . . . . . 1 1 1 1 . 1 4 . . 25 Average Slot Usage (%) 96 | . 96 99 100 100 97 99 99 100 99 99 99 100 100 87 88 89 90 85 Engine 5 | . 12 12 12 12 9 . 1 7 11 4 . . . . . . . . Core 2 | . . . . . 6 15 12 7 2 . . . . . 2 . . . Reactor 6 | . . . . . . . . . . 7 11 11 11 15 12 14 15 13 Treads 13 | . . . . . . 13 28 28 28 25 22 22 22 10 10 10 10 8 Leg 6 | . 33 28 . . 24 18 . . . . . . . . . . . . Wheel 4 | . . 8 37 37 6 . . . . . . . . . . . . . Device 13 | . . . . . 12 8 12 9 12 17 22 22 22 20 19 24 25 24 Storage 7 | . 12 12 12 12 8 8 7 7 7 6 5 5 5 5 5 5 5 5 Processor 11 | . 12 12 12 12 8 8 8 14 14 12 11 11 11 15 14 10 10 5 Protection 4 | . . . . . 3 8 12 4 7 6 5 5 5 5 5 5 5 8 Energy Gun 8 | . 25 8 . . 6 9 7 9 12 6 13 11 11 4 7 5 8 4 Energy Cannon 4 | . . . . . . 6 7 4 1 12 4 5 5 7 7 10 6 4 Ballistic Gun 2 | . . 4 12 12 6 . . . . . 1 . . . . . . 5 Ballistic Cannon 1 | . . . . . . . . . . . 2 5 5 5 5 5 5 4 Launcher 1 | . . 9 12 12 3 . . . . . . . . . . . . . Naked Turns . | . . . . . . . . . . . . . . . . . . . Heaviest Build 142 | 14 43 43 40 40 63 60 76 65 73 90 97 97 97 118 126 142 129 133 Greatest Support 155 | 20 30 30 30 30 55 80 80 80 80 108 117 117 117 150 150 155 155 155 Greatest Overweight (x) 12 | 1 1 3 1 1 5 2 . . . 1 . . . 1 . . . 12 Average Overweight (x) . | . . 1 1 1 . . . . . . . . . . . . . . Largest Inventory Capacity 12 | 8 12 12 12 12 12 12 12 12 12 12 12 12 12 12 12 12 12 12 Average Capacity 11 | 7 10 12 12 12 12 12 12 12 12 12 12 12 12 12 12 12 12 11 Most Carried 12 | 6 12 12 12 12 12 12 12 12 12 12 12 12 11 12 12 12 12 12 Average Carried 11 | 3 9 11 12 12 10 11 10 11 11 11 11 11 11 11 11 11 11 9 Final Capacity 12 | 8 12 12 12 12 12 12 12 12 12 12 12 12 12 12 12 12 12 4 Final Carried 12 | 6 12 12 12 12 12 12 11 12 12 12 12 11 11 12 12 12 11 1 Class Distribution -------------------- 26% | Scavenger-Mutant 23% | Hacker-Mutant 19% | Hacker-Gunner 16% | Scavenger-Gunner 5% | Scavenger-Skirmisher 4% | Scavenger-Tank 4% | Hacker-Skirmisher Dominant Class ---------------- Hacker-Mutant | -10/Materials Hacker-Mutant | -10/Mines Scavenger-Mutant | -10/Exiles Hacker-Mutant | -9/Mines Hacker-Mutant | -8/Materials Hacker-Mutant | -8/Storage Scavenger-Mutant | -7/Factory Scavenger-Mutant | -7/Waste Scavenger-Mutant | -7/Factory Hacker-Gunner | -6/Factory Scavenger-Gunner | -5/Factory Hacker-Skirmisher | -5/Upper Caves Hacker-Gunner | -5/Upper Caves Hacker-Gunner | -4/Factory Scavenger-Gunner | -4/Extension Scavenger-Gunner | -4/Cetus Scavenger-Gunner | -4/Archives Scavenger-Tank | -4/Hub_04(d) Resources | -11 -10 -10 -10 -9 -8 -8 -7 -7 -7 -6 -5 -5 -5 -4 -4 -4 -4 -4 ----------- Run | Scr Mat Min Exi Min Mat Sto Fac Was Fac Fac Fac Upp Upp Fac Ext Cet Arc Hub Matter Collected 5145 | 280 60 178 . 53 410 160 50 80 110 160 354 275 . 840 430 628 108 969 Remotely . | . . . . . . . . . . . . . . . . . . . Salvage Created 13253 | 85 317 249 . . 533 882 300 . 1128 1254 2126 141 . 1280 1019 817 304 2818 Parts 561 | 1 27 7 . . 25 45 13 . 45 47 100 3 . 44 34 36 9 125 Haulers Intercepted 10 | . 2 . . . . 2 . . 2 2 1 . . . 1 . . . Recyclers Shooed 10 | . 1 . . . 1 1 . . . 2 3 . . 1 . . . 1 Parts Field Recycled . | . . . . . . . . . . . . . . . . . . . Retrieved Matter . | . . . . . . . . . . . . . . . . . . . Parts Self-Destructed . | . . . . . . . . . . . . . . . . . . . Prevented . | . . . . . . . . . . . . . . . . . . . Kills | -11 -10 -10 -10 -9 -8 -8 -7 -7 -7 -6 -5 -5 -5 -4 -4 -4 -4 -4 ------- Run | Scr Mat Min Exi Min Mat Sto Fac Was Fac Fac Fac Upp Upp Fac Ext Cet Arc Hub Combat Hostiles Destroyed 190 | . 4 20 . . 12 8 6 . 16 13 26 2 . 18 12 18 4 31 Guns 86 | . 4 10 . . 6 3 2 . 14 9 6 1 . 3 3 3 1 21 Cannons 74 | . . . . . . 5 4 . 1 4 10 1 . 14 8 15 3 9 AOE 21 | . . 10 . . 6 . . . . . 5 . . . . . . . Classes Destroyed 18 | 1 5 2 . . 3 2 1 . 1 . 1 . . . . . . 2 Worker 13 | . 1 . . . . . . . 1 . 1 . . . . . . 10 Builder 8 | . . . . . . 2 . . . 1 . . . . 2 . . 3 Tunneler 1 | . . . . . . . . . . . . . . . . . . 1 Hauler 10 | . 2 . . . . 2 . . 2 2 1 . . . 1 . . . Recycler 16 | 1 . . . . 1 3 . . 1 3 3 . . 1 . . . 3 Operator 3 | . . . . . . . 1 . . . . . . 1 1 . . . Watcher 18 | . 3 . . . . 2 . . 3 1 3 . . . 1 2 . 3 Swarmer 18 | . 2 . . . 2 . . . . 5 3 . . . 1 4 . 1 Grunt 61 | . 2 . . . 4 2 6 . 12 1 7 2 . 9 3 2 . 11 Brawler 3 | . . . . . 1 . . . . . 1 . . . 1 . . . Duelist 6 | . . . . . 1 . . . . 2 1 . . . . . . 2 Protector 1 | . . . . . . . . . . . . . . . . . . 1 Sentry 31 | . . . . . 4 4 . . 2 2 1 . . 4 2 . 4 8 Demolisher 2 | . . 2 . . . . . . . . . . . . . . . . Hunter 12 | . . . . . . 2 . . . . 3 . . 2 3 2 . . Programmer 22 | . . . . . . . . . 2 3 9 . . 2 . 2 . 4 Behemoth 4 | . . . . . . . . . . . 1 . . 1 2 . . . Cetus Guard 8 | . . . . . . . . . . . . . . . . 8 . . Lightning 4 | . . . . . . . . . . . . . . . . . . 4 Assembled 18 | . . 18 . . . . . . . . . . . . . . . . Best Kill Streak 18 | 1 3 8 . . 2 9 3 . 3 5 4 2 . 5 5 7 4 18 Combat Bots Only 13 | . 2 8 . . 2 3 3 . 2 4 3 2 . 4 4 6 4 13 Max Kills in Single Turn 3 | 1 2 2 . . 2 1 1 . 2 2 3 1 . 1 2 2 1 3 Gunslinging 1 | . . 1 . . . . . . . . . . . . . . . 1 Exploded 2 | . . 2 . . 2 . . . . . 2 . . . . . . . Melee . | . . . . . . . . . . . . . . . . . . . Uniques/NPCs Destroyed . | . . . . . . . . . . . . . . . . . . . Combat | -11 -10 -10 -10 -9 -8 -8 -7 -7 -7 -6 -5 -5 -5 -4 -4 -4 -4 -4 -------- Run | Scr Mat Min Exi Min Mat Sto Fac Was Fac Fac Fac Upp Upp Fac Ext Cet Arc Hub Damage Taken 12688 | . 27 749 . 6 435 256 157 . 852 574 1215 25 . 855 1495 1143 162 4737 Core 1727 | . 5 136 . . 74 50 22 . 131 52 104 . . 47 138 51 . 917 Absorbed by Shields . | . . . . . . . . . . . . . . . . . . . Core Remaining (%) 80 | 100 . . . 43 . 77 . . 78 93 . . 89 . . . . . Volleys Fired 576 | 10 20 33 . . 54 42 18 . 62 33 54 3 . 46 42 69 9 81 Largest 4 | 2 2 2 . . 2 2 2 . 2 3 4 4 . 4 4 4 4 4 Hottest 343 | 80 112 112 . . 101 115 115 . 162 181 281 199 . 273 285 333 333 343 Shots Fired 1546 | 12 39 56 . . 91 84 36 . 124 99 208 13 . 139 140 178 31 296 Gun 801 | 12 39 48 . . 80 30 18 . 113 33 140 6 . 30 49 26 4 173 Cannon 726 | . . . . . . 54 18 . 11 66 68 7 . 109 91 152 27 123 Launcher 19 | . . 8 . . 11 . . . . . . . . . . . . . Special . | . . . . . . . . . . . . . . . . . . . Kinetic 438 | . . 4 . . 38 . . . . . 44 4 . 46 42 64 9 187 Thermal 921 | 10 39 41 . . 26 75 36 . 124 99 69 9 . 69 98 114 22 90 Explosive 19 | . . 8 . . 11 . . . . . . . . . . . . . Electromagnetic 168 | 2 . 3 . . 16 9 . . . . 95 . . 24 . . . 19 Robot Hit Streak 46 | 5 12 13 . . 20 18 24 . 34 33 46 28 . 31 28 40 15 40 Robot Miss Streak 4 | 1 3 1 . . 1 1 1 . 1 2 1 . . 2 3 2 1 4 Penetration Max 1 | . . . . . . . . . . . . . . . 1 1 . 1 Secondary Targets 10 | . 1 2 . . . . . . 3 . 1 . . . . . . 3 Max Gunslinging Chain 1 | . 1 1 . . . . . . 1 . 1 . . . . . . 1 Shots Hit Robots 1146 | 9 26 38 . . 72 58 33 . 105 59 168 9 . 104 97 121 22 225 Core Hits 511 | 2 12 38 . . 23 22 15 . 43 29 71 4 . 44 39 45 9 115 Critical Hits 76 | . . . . . . . . . . 1 1 . . 7 6 11 4 46 Critical Kills 28 | . . . . . . . . . . . 1 . . . 3 4 3 17 Critical Parts Destroyed 43 | . . . . . . . . . . 1 . . . 6 2 6 . 28 Melee Attacks . | . . . . . . . . . . . . . . . . . . . Impact . | . . . . . . . . . . . . . . . . . . . Slashing . | . . . . . . . . . . . . . . . . . . . Piercing . | . . . . . . . . . . . . . . . . . . . Sneak Attacks . | . . . . . . . . . . . . . . . . . . . Combat Hostiles . | . . . . . . . . . . . . . . . . . . . Follow-up Attacks . | . . . . . . . . . . . . . . . . . . . Damage Inflicted 32797 | 99 336 931 . 12 1362 1427 662 . 2531 1992 4620 243 . 3425 3006 3792 788 7571 Guns 14524 | 99 336 439 . . 897 371 318 . 2312 755 2359 148 . 669 908 413 133 4367 Cannons 16461 | . . . . . . 1056 344 . 214 1237 1648 95 . 2681 1948 3379 655 3204 Explosions 1709 | . . 416 . . 465 . . . . . 603 . . 75 150 . . . Melee . | . . . . . . . . . . . . . . . . . . . Ramming 103 | . . 76 . 12 . . . . 5 . 10 . . . . . . . Kinetic 9383 | . . 37 . . 341 . . . . . 835 27 . 755 768 1567 186 4867 Thermal 19615 | 86 336 368 . . 419 1317 662 . 2526 1992 2066 216 . 1903 2238 2225 602 2659 Explosive 803 | . . 416 . . 387 . . . . . . . . . . . . . Electromagnetic 2893 | 13 . 34 . . 215 110 . . . . 1709 . . 767 . . . 45 Impact . | . . . . . . . . . . . . . . . . . . . Slashing . | . . . . . . . . . . . . . . . . . . . Piercing . | . . . . . . . . . . . . . . . . . . . Highest Corruption 32 | . 1 3 3 3 . . . . 1 2 6 6 6 1 5 6 6 32 Average Corruption 3 | . 1 1 3 3 . . . . 1 2 3 6 6 1 2 5 6 7 Corruption Purged . | . . . . . . . . . . . . . . . . . . . Effects 186 | . 2 5 9 11 . . . . . 3 27 17 1 . 16 29 11 55 Message Errors 35 | . . 3 3 2 . . . . . 1 4 4 . . 4 2 4 8 Matter Fused 32 | . . . 3 3 . . . . . . 3 3 1 . 4 5 4 6 Heat Flow Errors 20 | . . . 1 5 . . . . . 1 3 5 . . . 1 1 3 Energy Discharges 14 | . 1 2 1 . . . . . . . 3 2 . . 1 3 . 1 Parts Rejected 1 | . . . . . . . . . . . . . . . . 1 . . Data Loss (minor) 10 | . . . 1 1 . . . . . . 2 1 . . 2 1 1 1 Data Loss (major) 5 | . . . . . . . . . . . . . . . . . . 5 Misfires 4 | . . . . . . . . . . . 1 1 . . . 1 . 1 Misdirections 2 | . . . . . . . . . . . . . . . . . . 2 Targeting Errors 56 | . . . . . . . . . . 1 9 1 . . 4 14 1 26 Weapon Failures 7 | . 1 . . . . . . . . . 2 . . . 1 1 . 2 Overload Shots . | . . . . . . . . . . . . . . . . . . . Overflow Damage 535 | . . 9 . . . 20 2 . 4 38 189 . . 41 115 57 . 60 Projectiles 430 | . . . . . . 20 2 . 4 38 93 . . 41 115 57 . 60 Explosions 105 | . . 9 . . . . . . . . 96 . . . . . . . Melee . | . . . . . . . . . . . . . . . . . . . Knockbacks 30 | . . 2 . . . . . . . . 3 . . 5 4 3 . 13 Impact 2 | . . 2 . . . . . . . . . . . . . . . . Kinetic 24 | . . . . . . . . . . . 3 . . 4 3 3 . 11 Secondary 4 | . . . . . . . . . . . . . . 1 1 . . 2 Self-Inflicted Damage 211 | . . 81 . 6 29 . . . . . 11 . . . 84 . . . Shots 8 | . . 3 . . 2 . . . . . 1 . . . 2 . . . Rammed 8 | . . 5 . 1 . . . . 1 . 1 . . . . . . . Targets Rammed 10 | . . 7 . 1 . . . . 1 . 1 . . . . . . . Kicked 2 | . . 2 . . . . . . . . . . . . . . . . Crushed . | . . . . . . . . . . . . . . . . . . . Highest Temperature 724 | 18 213 399 256 276 153 147 114 . 345 312 199 193 . 246 463 468 262 724 Average Temperature 113 | 12 75 146 136 119 50 38 44 . 110 94 95 82 . 130 161 175 85 207 Received Heat Transfer 2190 | . 9 360 . . 234 72 135 . 405 96 141 21 . 153 192 45 27 300 Effects 12 | . . 1 . . . . . . . 1 . . . . 2 2 . 6 Shutdowns 2 | . . 1 . . . . . . . . . . . . 1 . . . Energy Bleed 3 | . . . . . . . . . . 1 . . . . 1 . . 1 Interference 4 | . . . . . . . . . . . . . . . . 2 . 2 Damage (major) 2 | . . . . . . . . . . . . . . . . . . 2 Damage (core) 1 | . . . . . . . . . . . . . . . . . . 1 Siege Activations . | . . . . . . . . . . . . . . . . . . . Robots Corrupted 5 | . . . . . . . . . . . 4 . . 1 . . . . Combat Hostiles 5 | . . . . . . . . . . . 4 . . 1 . . . . Parts Fried 19 | . . . . . . . . . . . 16 . . 2 . . . 1 Impact Corruptions 1 | . . . . . . . . . . . . . . . . . . 1 Robots Melted 4 | . . . . . . . . . 1 . 1 . . . 1 . . 1 Combat Hostiles 4 | . . . . . . . . . 1 . 1 . . . 1 . . 1 Parts Melted 54 | . 1 2 . . 1 1 1 . 13 6 7 2 . 1 6 3 1 9 Heat Transferred 29003 | 200 851 915 . . 840 2156 1184 . 3922 2489 2529 400 . 2400 3400 3296 848 3573 Parts Sabotaged . | . . . . . . . . . . . . . . . . . . . Parts Stolen . | . . . . . . . . . . . . . . . . . . . Parts Stripped . | . . . . . . . . . . . . . . . . . . . Power Chain Reactions 5 | . . . . . 1 . . . . . 4 . . . . . . . Missiles Intercepted . | . . . . . . . . . . . . . . . . . . . Alert | -11 -10 -10 -10 -9 -8 -8 -7 -7 -7 -6 -5 -5 -5 -4 -4 -4 -4 -4 ------- Run | Scr Mat Min Exi Min Mat Sto Fac Was Fac Fac Fac Upp Upp Fac Ext Cet Arc Hub Peak Influence 851 | 5 166 30 . . 379 340 252 60 255 280 266 . . 448 386 433 182 851 Initial 160 | . 2 . . . . 77 49 60 . . . . . . 160 28 47 43 Average 109 | 1 54 11 . . 164 137 82 46 83 50 124 . . 131 201 174 163 257 Maximum Alert Level 3 | . . . . . 1 1 1 . 1 1 1 . . 2 1 2 . 3 Low Security (%) 82 | 100 100 100 . 100 61 79 91 100 96 93 76 . . 71 48 75 100 57 Level 1 15 | . . . . . 38 20 8 . 3 6 23 . . 19 51 21 . 23 Level 2 1 | . . . . . . . . . . . . . . 8 . 2 . 8 Level 3 . | . . . . . . . . . . . . . . . . . . 10 Level 4 . | . . . . . . . . . . . . . . . . . . . Level 5 . | . . . . . . . . . . . . . . . . . . . High Security . | . . . . . . . . . . . . . . . . . . . Max Security . | . . . . . . . . . . . . . . . . . . . Squads Dispatched 38 | . . . . . 2 1 2 . 5 3 8 . . 6 2 1 . 8 Investigation 5 | . . . . . . . . . 1 . 1 . . 1 1 1 . . Extermination 9 | . . . . . . . 1 . 1 2 3 . . 1 . . . 1 Reinforcement 12 | . . . . . 2 1 1 . 2 1 1 . . 1 1 . . 2 Assault . | . . . . . . . . . . . . . . . . . . . Garrison 12 | . . . . . . . . . 1 . 3 . . 3 . . . 5 Intercept . | . . . . . . . . . . . . . . . . . . . Construction Impeded 1 | . . . . . . . . . . . . . . . . . . 1 Haulers Reinforced . | . . . . . . . . . . . . . . . . . . . Stealth | -11 -10 -10 -10 -9 -8 -8 -7 -7 -7 -6 -5 -5 -5 -4 -4 -4 -4 -4 --------- Run | Scr Mat Min Exi Min Mat Sto Fac Was Fac Fac Fac Upp Upp Fac Ext Cet Arc Hub Distress Signals 17 | . 1 . . . 1 3 . . 3 . 1 . . 2 1 2 . 3 Communications Jammed . | . . . . . . . . . . . . . . . . . . . Distress Signals . | . . . . . . . . . . . . . . . . . . . Times Spotted 281 | . 9 17 . . 15 15 9 . 32 16 34 2 . 23 24 20 8 57 Peak Tracking Total 16 | . 5 5 . . 2 5 4 . 4 5 5 2 . 6 5 5 1 16 Tactical Retreats 11 | . . . . . 1 . 2 . 1 . 1 . . 2 3 . . 1 Traps | -11 -10 -10 -10 -9 -8 -8 -7 -7 -7 -6 -5 -5 -5 -4 -4 -4 -4 -4 ------- Run | Scr Mat Min Exi Min Mat Sto Fac Was Fac Fac Fac Upp Upp Fac Ext Cet Arc Hub Traps Triggered 11 | . 2 . . . 1 2 1 . 1 2 1 . . . . . . 1 Indirectly . | . . . . . . . . . . . . . . . . . . . Trap Hack Attempts . | . . . . . . . . . . . . . . . . . . . Triggered . | . . . . . . . . . . . . . . . . . . . Disarmed 4 | . . . . . . 4 . . . . . . . . . . . . Reprogrammed 5 | . 5 . . . . . . . . . . . . . . . . . Reused . | . . . . . . . . . . . . . . . . . . . Traps Extracted . | . . . . . . . . . . . . . . . . . . . Installed . | . . . . . . . . . . . . . . . . . . . Triggered . | . . . . . . . . . . . . . . . . . . . Machines | -11 -10 -10 -10 -9 -8 -8 -7 -7 -7 -6 -5 -5 -5 -4 -4 -4 -4 -4 ---------- Run | Scr Mat Min Exi Min Mat Sto Fac Was Fac Fac Fac Upp Upp Fac Ext Cet Arc Hub Machines Disabled 41 | . 1 . . . 3 1 2 . 2 4 16 . . 2 2 2 1 5 Max in Single Turn 8 | . 1 . . . 2 1 1 . 1 1 8 . . 1 2 1 1 1 Network Hub 1 | . . . . . . . . . . . . . . . . . . 1 Energy Cycler 2 | . . . . . . . . . . . . . . . 2 . . . Machines Sabotaged . | . . . . . . . . . . . . . . . . . . . Garrisons Compromised . | . . . . . . . . . . . . . . . . . . . Overloaded Fab Kills . | . . . . . . . . . . . . . . . . . . . Fab Network Shutdowns . | . . . . . . . . . . . . . . . . . . . Hacking | -11 -10 -10 -10 -9 -8 -8 -7 -7 -7 -6 -5 -5 -5 -4 -4 -4 -4 -4 --------- Run | Scr Mat Min Exi Min Mat Sto Fac Was Fac Fac Fac Upp Upp Fac Ext Cet Arc Hub Machines Accessed 39 | . 9 . . 1 1 4 . . 3 2 4 1 . 3 6 2 1 2 Terminals 29 | . 7 . . . . 3 . . 2 2 3 . . 2 6 2 . 2 Fabricators 3 | . . . . . . . . . 1 . 1 . . 1 . . . . Repair Stations 2 | . . . . . 1 1 . . . . . . . . . . . . Recycling Units 2 | . 2 . . . . . . . . . . . . . . . . . Scanalyzers . | . . . . . . . . . . . . . . . . . . . Garrison Access . | . . . . . . . . . . . . . . . . . . . Total Hacks 118 | . 20 . . 1 2 10 . . 6 6 12 1 . 6 9 13 25 7 Successful 89 | . 18 . . 1 2 8 . . 3 5 4 1 . 3 7 7 25 5 Failed 29 | . 2 . . . . 2 . . 3 1 8 . . 3 2 6 . 2 Catastrophic 5 | . 1 . . . . . . . 1 . 1 . . 1 . 1 . . Database Lockouts . | . . . . . . . . . . . . . . . . . . . Manual 28 | . 15 . . . . 2 . . . 3 1 . . 3 1 . 1 2 Terminals 76 | . 16 . . . . 8 . . 4 6 8 . . 5 9 13 . 7 Fabricators 7 | . . . . . . . . . 2 . 4 . . 1 . . . . Repair Stations 4 | . . . . . 2 2 . . . . . . . . . . . . Recycling Units 4 | . 4 . . . . . . . . . . . . . . . . . Scanalyzers . | . . . . . . . . . . . . . . . . . . . Garrison Access . | . . . . . . . . . . . . . . . . . . . Terminal Hacks 72 | . 8 . . 1 . 5 . . 3 5 3 1 . 2 7 7 25 5 Record 38 | . . . . . . . . . . 1 1 . . 1 3 7 25 . Robot Analysis 5 | . . . . . . . . . 3 . . . . 1 . . . 1 Prototype ID Bank 2 | . 1 . . . . . . . . . . . . . . . . 1 Open Door 7 | . . . . 1 . 1 . . . . . 1 . . 4 . . . Branch Access Points 1 | . 1 . . . . . . . . . . . . . . . . . Emergency Access Points 2 | . 1 . . . . . . . . . . . . . . . . 1 Alert Level 2 | . . . . . . . . . . 1 1 . . . . . . . Unreport Threat 1 | . . . . . . . . . . 1 . . . . . . . . Locate Traps 3 | . 1 . . . . 2 . . . . . . . . . . . . Disarm Traps 1 | . . . . . . 1 . . . . . . . . . . . . Reprogram Traps 2 | . 1 . . . . . . . . . . . . . . . . 1 Dispatch Records 1 | . 1 . . . . . . . . . . . . . . . . . Recall Reinforcements 2 | . . . . . . . . . . 1 1 . . . . . . . Recall Assault 1 | . . . . . . 1 . . . . . . . . . . . . Hauler Manifests 3 | . 1 . . . . . . . . 1 . . . . . . . 1 Zone Layout 1 | . 1 . . . . . . . . . . . . . . . . . Fabricator Hacks 1 | . . . . . . . . . . . 1 . . . . . . . Build 1 | . . . . . . . . . . . 1 . . . . . . . Repair Station Hacks 4 | . . . . . 2 2 . . . . . . . . . . . . Scan Component 2 | . . . . . 1 1 . . . . . . . . . . . . Repair 2 | . . . . . 1 1 . . . . . . . . . . . . Recycling Unit Hacks 1 | . 1 . . . . . . . . . . . . . . . . . Report Inventory 1 | . 1 . . . . . . . . . . . . . . . . . Scanalyzer . | . . . . . . . . . . . . . . . . . . . Garrison Access Hacks . | . . . . . . . . . . . . . . . . . . . Unauthorized Hacks 11 | . 9 . . . . 1 . . . . . . . 1 . . . . Terminals 7 | . 6 . . . . 1 . . . . . . . . . . . . Botnet 6 | . 5 . . . . 1 . . . . . . . . . . . . Disrupt 1 | . 1 . . . . . . . . . . . . . . . . . Fabricators 1 | . . . . . . . . . . . . . . 1 . . . . Report 1 | . . . . . . . . . . . . . . 1 . . . . Repair Stations . | . . . . . . . . . . . . . . . . . . . Recycling Units 3 | . 3 . . . . . . . . . . . . . . . . . Reject 1 | . 1 . . . . . . . . . . . . . . . . . Recyclers 2 | . 2 . . . . . . . . . . . . . . . . . Scanalyzers . | . . . . . . . . . . . . . . . . . . . Garrison Access . | . . . . . . . . . . . . . . . . . . . Data Cores Recovered . | . . . . . . . . . . . . . . . . . . . Used . | . . . . . . . . . . . . . . . . . . . Hacking Detections 24 | . 4 . . . 1 2 . . 3 1 3 . . 3 3 2 . 2 Full Trace Events 5 | . . . . . . . . . 1 . 1 . . 1 1 1 . . Feedback Events . | . . . . . . . . . . . . . . . . . . . Feedback Blocked . | . . . . . . . . . . . . . . . . . . . Robot Schematics Acquired . | . . . . . . . . . . . . . . . . . . . Robots Built 3 | . . . . . . . . . . . 3 . . . . . . . Matter 318 | . . . . . . . . . . . 318 . . . . . . . Time 169 | . . . . . . . . . . . 169 . . . . . . . Total Robot Build Rating 18 | . . . . . . . . . . . 18 . . . . . . . Part Schematics Acquired . | . . . . . . . . . . . . . . . . . . . Parts Built . | . . . . . . . . . . . . . . . . . . . Matter . | . . . . . . . . . . . . . . . . . . . Time . | . . . . . . . . . . . . . . . . . . . Total Part Build Rating . | . . . . . . . . . . . . . . . . . . . Parts Repaired 2 | . . . . . 1 1 . . . . . . . . . . . . Time 51 | . . . . . 13 38 . . . . . . . . . . . . Parts Recycled . | . . . . . . . . . . . . . . . . . . . Recycled Matter . | . . . . . . . . . . . . . . . . . . . Retrieved Matter . | . . . . . . . . . . . . . . . . . . . Retrieved Components . | . . . . . . . . . . . . . . . . . . . Parts Scanalyzed . | . . . . . . . . . . . . . . . . . . . Part Schematics Acquired . | . . . . . . . . . . . . . . . . . . . Parts Damaged . | . . . . . . . . . . . . . . . . . . . Bothacking | -11 -10 -10 -10 -9 -8 -8 -7 -7 -7 -6 -5 -5 -5 -4 -4 -4 -4 -4 ------------ Run | Scr Mat Min Exi Min Mat Sto Fac Was Fac Fac Fac Upp Upp Fac Ext Cet Arc Hub Used RIF Installer . | . . . . . . . . . . . . . . . . . . . Robots Hacked . | . . . . . . . . . . . . . . . . . . . Non-combat . | . . . . . . . . . . . . . . . . . . . Combat . | . . . . . . . . . . . . . . . . . . . Robot Hacks Applied . | . . . . . . . . . . . . . . . . . . . Relay Couplers Released . | . . . . . . . . . . . . . . . . . . . Robots Rewired 2 | . . . . . . . . . . . 1 . . . . . . 1 Allies Hacked . | . . . . . . . . . . . . . . . . . . . Hacks Repelled . | . . . . . . . . . . . . . . . . . . . Allies | -11 -10 -10 -10 -9 -8 -8 -7 -7 -7 -6 -5 -5 -5 -4 -4 -4 -4 -4 -------- Run | Scr Mat Min Exi Min Mat Sto Fac Was Fac Fac Fac Upp Upp Fac Ext Cet Arc Hub Total Allies 8 | . . . . . . . . 1 . . 4 . . . 2 . . 1 Largest Group 3 | . . . . . . . . 1 1 . 3 . . . 2 . . . Highest-Rated Group 90 | . . . . . . . . 31 31 . 90 . . . 87 . . . Highest-Rated Ally 49 | . . . . . . . . 31 31 . 30 . . . 49 . . . Total Orders 8 | . . . . . 2 . 2 3 . . 1 . . . . . . . DROP 1 | . . . . . . . . . . . 1 . . . . . . . EXPLORE 5 | . . . . . 1 . 2 2 . . . . . . . . . . RETURN 2 | . . . . . 1 . . 1 . . . . . . . . . . Ally Attacks 21 | . . . . . . . . . . . 13 . . . 7 . . 1 Total Damage 1886 | . . . . . . . . . . . 507 . . . 272 . . 1107 Kills 14 | . . . . . . . . . . . 3 . . . 4 . . 7 Allies Corrupted . | . . . . . . . . . . . . . . . . . . . Allies Melted . | . . . . . . . . . . . . . . . . . . . Intel | -11 -10 -10 -10 -9 -8 -8 -7 -7 -7 -6 -5 -5 -5 -4 -4 -4 -4 -4 ------- Run | Scr Mat Min Exi Min Mat Sto Fac Was Fac Fac Fac Upp Upp Fac Ext Cet Arc Hub Robot Analysis Total 5 | . . . . . . . . . 3 . . . . 1 . . . 1 Derelict Logs Recovered 2 | . . 1 . . . . . . . . . 1 . . . . . . Drone Launches 37 | . . . . . 20 . 17 . . . . . . . . . . . Drone Recoveries 33 | . . . . . 17 . 13 3 . . . . . . . . . . Exploration | -11 -10 -10 -10 -9 -8 -8 -7 -7 -7 -6 -5 -5 -5 -4 -4 -4 -4 -4 ------------- Run | Scr Mat Min Exi Min Mat Sto Fac Was Fac Fac Fac Upp Upp Fac Ext Cet Arc Hub Turns Passed 13403 | 122 826 902 534 653 752 643 339 519 1216 1201 1653 592 39 734 901 623 345 809 Spaces Moved 7460 | 73 540 602 592 687 375 261 62 208 616 620 855 357 25 354 460 272 192 309 Core 35 | 16 . . . . . . . . . . . . . . . . . 19 Treads 4424 | . . . . . . 119 62 208 616 620 855 357 25 354 460 272 192 284 Legs 1427 | 57 540 377 . . 311 142 . . . . . . . . . . . . Wheels 1574 | . . 225 592 687 64 . . . . . . . . . . . . 6 Hover . | . . . . . . . . . . . . . . . . . . . Flight . | . . . . . . . . . . . . . . . . . . . Fastest Speed 50 | 50 120 90 90 90 90 122 160 160 160 160 160 162 162 155 160 160 160 50 Average Speed 141 | 107 131 127 90 90 123 143 160 160 160 161 161 162 162 159 160 160 160 165 Slowest Speed 600 | 150 150 150 90 90 270 200 160 160 160 180 162 162 162 180 160 160 160 600 Overloaded Moves . | . . . . . . . . . . . . . . . . . . . Propulsion Burnouts . | . . . . . . . . . . . . . . . . . . . Robots Hopped . | . . . . . . . . . . . . . . . . . . . Cave-ins Triggered 1 | . . . . . . . . . . . . . . . 1 . . . Exploration Rate (%) 50 | 4 73 99 92 98 38 51 9 95 25 17 25 59 9 8 65 71 99 26 Regions Visited 18 Branch Regions 10 Pre-discovered Areas . | . . . . . . . . . . . . . . . . . . . Known Exits Taken 16 | 1 1 1 1 1 1 1 . . 1 1 1 1 1 1 1 1 1 . Unknown Exits Taken . | . . . . . . . . . . . . . . . . . . . Scrap Searched 6 | . . 2 . 2 . . . . . . . 2 . . . . . . Spaces Dug 9 | . . . . . 8 . . . . . . . . . 1 . . . Terrain Destroyed 380 | . . 68 . . 106 7 . . . 19 48 3 . 34 39 4 4 48 Melee . | . . . . . . . . . . . . . . . . . . . Projectile 132 | . . . . . . 7 . . . 19 9 3 . 16 22 4 4 48 AOE 248 | . . 68 . . 106 . . . . . 39 . . 18 17 . . . Terrain Rammed . | . . . . . . . . . . . . . . . . . . . Walls Destroyed . | . . . . . . . . . . . . . . . . . . . Machines Disabled . | . . . . . . . . . . . . . . . . . . . Actions | -11 -10 -10 -10 -9 -8 -8 -7 -7 -7 -6 -5 -5 -5 -4 -4 -4 -4 -4 --------- Run | Scr Mat Min Exi Min Mat Sto Fac Was Fac Fac Fac Upp Upp Fac Ext Cet Arc Hub Total 9310 | 103 616 677 593 721 573 445 268 394 723 750 995 364 24 459 560 371 216 458 Wait 794 | . 39 5 . 31 103 105 175 170 23 59 15 2 . 19 17 . 8 23 Move 7443 | 72 539 601 591 686 374 260 62 207 615 619 854 356 24 353 459 271 191 309 Hop . | . . . . . . . . . . . . . . . . . . . Pick Up 125 | 13 8 10 . 1 13 9 3 5 2 10 11 . . 10 12 7 1 10 Fast Attach 35 | . 1 2 . . 5 8 . . 3 3 8 . . 1 1 2 1 . Attach 73 | 7 . 5 . . 8 . 5 . . 5 3 1 . 6 9 5 1 18 Detach 5 | . . . . . . . 2 . . . . . . . 1 1 . 1 Swap 101 | 1 5 4 1 1 5 8 1 7 8 8 21 1 . 9 10 5 1 5 Drop 139 | . 4 7 1 1 11 13 2 5 9 13 25 1 . 15 9 11 4 8 Fire 576 | 10 20 33 . . 54 42 18 . 62 33 54 3 . 46 42 69 9 81 Melee . | . . . . . . . . . . . . . . . . . . . Ram 4 | . . 2 . 1 . . . . . . . . . . . . . 1 Kick 5 | . . 5 . . . . . . . . . . . . . . . . Crush 2 | . . . . . . . . . 1 . 1 . . . . . . . Escape Stasis . | . . . . . . . . . . . . . . . . . . . Rewire 8 | . . 3 . . . . . . . . 3 . . . . . . 2 Trap . | . . . . . . . . . . . . . . . . . . . Miscellaneous . | . . . . . . . . . . . . . . . . . . . Route ------- -11/Scrapyard -10/Materials (discovered 3 exits: *Mat / *Min x2) -10/Mines (discovered 3 exits: *Mat x2 / *Exi) -10/Exiles (discovered 2 exits: *Min x2) -9/Mines (discovered 2 exits: *Mat x2) -8/Materials (discovered 3 exits: *Fac / *Sto x2) -8/Storage -7/Factory -7/Waste -7/Factory -6/Factory -5/Factory -5/Upper Caves -5/Upper Caves -4/Factory (discovered 2 exits: *Ext x2) -4/Extension (discovered 3 exits: *Res x2 / *Cet) -4/Cetus (discovered 2 exits: *Res / *Arc) -4/Archives (discovered 3 exits: *Res / *Hub x2) -4/Hub_04(d) (discovered 1 exit: *Res) History --------- Turn | Location | Event 63 | -11/Scrapyard | Identified exit to Materials 63 | -11/Scrapyard | Discovered exit to Materials (range 15) 123 | -11/Scrapyard | Entered Materials 123 | -10/Materials | Evolved 1 slot: Propulsion x1 198 | -10/Materials | Identified exit to Mines 198 | -10/Materials | Discovered exit to Mines (range 15) 304 | -10/Materials | Build established: Hacker-Mutant 495 | -10/Materials | Identified exit to Materials 495 | -10/Materials | Discovered exit to Materials (range 5) 949 | -10/Materials | Entered Mines 985 | -10/Mines | Assembled infested the area 1101 | -10/Mines | Destroyed 8 combat bots 1112 | -10/Mines | Lost 4 parts (1n3w) 1185 | -10/Mines | Received a Rocket Launcher from a helpful Derelict 1245 | -10/Mines | Deemed a non-threat by the Exiles lab entrance 1245 | -10/Mines | Identified exit to Exiles 1245 | -10/Mines | Discovered exit to Exiles (range 5) 1341 | -10/Mines | Discovered exit to Materials (range 11) 1437 | -10/Mines | Discovered exit to Materials (range 12) 1456 | -10/Mines | Core integrity fell below 50% 1851 | -10/Mines | Entered Exiles 1866 | -10/Exiles | Identified exit to Mines 1866 | -10/Exiles | Discovered exit to Mines (range 15) 1897 | -10/Exiles | Met 8R-AWN 1913 | -10/Exiles | Met EX-HEX 1928 | -10/Exiles | Build established: Scavenger-Mutant 1990 | -10/Exiles | Visited The Gauntlet 2091 | -10/Exiles | Met EX-DEC 2176 | -10/Exiles | Discovered exit to Mines (range 14) 2242 | -10/Exiles | Met EX-BIN 2385 | -10/Exiles | Entered Mines 2420 | -9/Mines | Identified exit to Materials 2420 | -9/Mines | Discovered exit to Materials (range 8) 2423 | -9/Mines | Met a Derelict bent on vengeance 2683 | -9/Mines | Found a hidden stash of uninstalled traps 2691 | -9/Mines | Build established: Hacker-Mutant 2706 | -9/Mines | Discovered exit to Materials (range 4) 2785 | -9/Mines | Found the Drone Emporium 2789 | -9/Mines | Found Prototype Device 3038 | -9/Mines | Entered Materials 3038 | -8/Materials | Evolved 4 slots: Power x1, Propulsion x1, Utility x2 3039 | -8/Materials | Identified exit to Storage 3040 | -8/Materials | Identified Sensor Drone Bay 3078 | -8/Materials | Identified exit to Factory 3078 | -8/Materials | Discovered exit to Factory (range 74) 3298 | -8/Materials | Repaired Ion Engine 3763 | -8/Materials | Discovered exit to Storage (range 7) 3790 | -8/Materials | Entered Storage 4296 | -8/Storage | Repaired Lgt. Nuclear Core 4387 | -8/Storage | Discovered exit to Factory (range 8) 4433 | -8/Storage | Entered Factory 4433 | -7/Factory | Evolved 2 slots: Utility x2 4455 | -7/Factory | Build established: Scavenger-Mutant 4772 | -7/Factory | Sucked down chute 4772 | -7/Factory | Entered Waste 4772 | -7/Waste | The area was eerily silent 4772 | -7/Waste | Met up with 3 allies sucked down the chute earlier 4773 | -7/Waste | Met a frightened Derelict 4852 | -7/Waste | Identified exit to Factory 4852 | -7/Waste | Discovered exit to Factory (range 60) 5291 | -7/Waste | Entered Factory 5291 | -7/Factory | Accompanied by 1 ally 6444 | -7/Factory | Garrison activated, responded to threat 6473 | -7/Factory | Identified exit to Factory 6473 | -7/Factory | Discovered exit to Factory (range 14) 6507 | -7/Factory | Entered another Factory area 6507 | -6/Factory | Evolved 2 slots: Utility x1, Weapon x1 7151 | -6/Factory | Build established: Hacker-Gunner 7669 | -6/Factory | Identified exit to Factory 7669 | -6/Factory | Discovered exit to Factory (range 8) 7708 | -6/Factory | Entered another Factory area 7708 | -5/Factory | Evolved 2 slots: Utility x1, Weapon x1 8286 | -5/Factory | Fabricated B-60 Warrior? 8392 | -5/Factory | Build established: Scavenger-Gunner 8497 | -5/Factory | Spotted B-75 Beast 8526 | -5/Factory | Destroyed B-75 Beast 8617 | -5/Factory | Garrison activated, responded to threat 9085 | -5/Factory | Build established: Scavenger-Skirmisher 9296 | -5/Factory | Identified exit to Upper Caves 9296 | -5/Factory | Discovered exit to Upper Caves (range 16) 9361 | -5/Factory | Entered Upper Caves 9380 | -5/Upper Caves | Encountered a Warlord checkpoint 9488 | -5/Upper Caves | Learned 8 Factory zone layouts 9654 | -5/Upper Caves | Build established: Hacker-Skirmisher 9934 | -5/Upper Caves | Identified exit to Upper Caves 9934 | -5/Upper Caves | Discovered exit to Upper Caves (range 8) 9953 | -5/Upper Caves | Entered another Upper Caves area 9976 | -5/Upper Caves | Identified exit to Factory 9976 | -5/Upper Caves | Discovered exit to Factory (range 12) 9992 | -5/Upper Caves | Entered Factory 9992 | -4/Factory | Evolved 2 slots: Power x1, Utility x1 9993 | -4/Factory | Identified exit to Extension 10051 | -4/Factory | Build established: Hacker-Gunner 10485 | -4/Factory | Garrison activated, responded to threat 10513 | -4/Factory | Spotted B-86 Titan 10607 | -4/Factory | Destroyed B-86 Titan 10726 | -4/Factory | Entered Extension 10887 | -4/Extension | Rescued a captive Derelict 10933 | -4/Extension | Energy Cycler disabled 10934 | -4/Extension | Rescued a captive Derelict 10934 | -4/Extension | Rescued a captive Derelict 10934 | -4/Extension | Rescued a captive Derelict 10935 | -4/Extension | Rescued a captive Derelict 10936 | -4/Extension | Rescued a captive Derelict 10936 | -4/Extension | Rescued a captive Derelict 10938 | -4/Extension | Rescued a captive Derelict 11084 | -4/Extension | Spotted B-86 Titan 11144 | -4/Extension | Destroyed B-86 Titan 11148 | -4/Extension | Spotted B-86 Titan 11159 | -4/Extension | Identified exit to Research 11159 | -4/Extension | Discovered exit to Research (range 15) 11165 | -4/Extension | Destroyed B-86 Titan 11216 | -4/Extension | Crushed by falling debris 11278 | -4/Extension | Lost 4 parts (1u3w) 11417 | -4/Extension | Discovered exit to Research (range 16) 11417 | -4/Extension | Identified exit to Cetus 11417 | -4/Extension | Discovered exit to Cetus (range 16) 11466 | -4/Extension | Build established: Scavenger-Gunner 11627 | -4/Extension | Entered Cetus 11646 | -4/Cetus | Spotted Cetus Guard 11654 | -4/Cetus | Destroyed Cetus Guard 11654 | -4/Cetus | Destroyed Cetus Guard 11657 | -4/Cetus | Spotted Cetus Guard 11659 | -4/Cetus | Spotted Cetus Guard 11669 | -4/Cetus | Destroyed Cetus Guard 11674 | -4/Cetus | Destroyed Cetus Guard 11866 | -4/Cetus | Cetus Manufacturing Module disabled 11934 | -4/Cetus | Identified exit to Archives 11934 | -4/Cetus | Discovered exit to Archives (range 15) 11962 | -4/Cetus | Spotted Cetus Guard 11962 | -4/Cetus | Spotted Cetus Guard 11973 | -4/Cetus | Destroyed Cetus Guard 11986 | -4/Cetus | Spotted Cetus Guard 11988 | -4/Cetus | Destroyed Cetus Guard 12001 | -4/Cetus | Destroyed Cetus Guard 12003 | -4/Cetus | Spotted Cetus Guard 12006 | -4/Cetus | Destroyed Cetus Guard 12047 | -4/Cetus | Discovered exit to Research (range 15) 12057 | -4/Cetus | Met Revision 17 12250 | -4/Cetus | Entered Archives 12321 | -4/Archives | Unable to access archive contents 12327 | -4/Archives | Discovered exit to Research (range 15) 12343 | -4/Archives | Unable to access archive contents 12351 | -4/Archives | Identified exit to Hub_04(d) 12351 | -4/Archives | Discovered exit to Hub_04(d) (range 16) 12362 | -4/Archives | Unable to access archive contents 12369 | -4/Archives | Discovered exit to Hub_04(d) (range 14) 12385 | -4/Archives | Unable to access archive contents 12595 | -4/Archives | Entered Hub_04(d) 12603 | -4/Hub_04(d) | Discovered exit to Research (range 16) 12959 | -4/Hub_04(d) | Garrison activated, responded to threat 13192 | -4/Hub_04(d) | Destroyed 8 combat bots 13247 | -4/Hub_04(d) | Build established: Scavenger-Tank 13260 | -4/Hub_04(d) | Garrison activated, responded to threat 13292 | -4/Hub_04(d) | Network Hub disabled 13292 | -4/Hub_04(d) | Spotted Lightning 13292 | -4/Hub_04(d) | Spotted Lightning 13292 | -4/Hub_04(d) | Spotted Lightning 13292 | -4/Hub_04(d) | Spotted Lightning 13292 | -4/Hub_04(d) | Spotted Lightning 13292 | -4/Hub_04(d) | Spotted Lightning 13292 | -4/Hub_04(d) | Spotted Lightning 13292 | -4/Hub_04(d) | Spotted Lightning 13292 | -4/Hub_04(d) | Spotted Lightning 13292 | -4/Hub_04(d) | Spotted Lightning 13292 | -4/Hub_04(d) | Spotted Lightning 13292 | -4/Hub_04(d) | Spotted Lightning 13298 | -4/Hub_04(d) | Destroyed Lightning 13305 | -4/Hub_04(d) | Destroyed Lightning 13311 | -4/Hub_04(d) | System corruption reached 10% 13313 | -4/Hub_04(d) | Destroyed Lightning 13331 | -4/Hub_04(d) | Core integrity fell below 50% 13334 | -4/Hub_04(d) | Destroyed 13 combat bots 13349 | -4/Hub_04(d) | Destroyed Lightning 13383 | -4/Hub_04(d) | System corruption reached 30% 13397 | -4/Hub_04(d) | Core integrity fell below 20% 13404 | -4/Hub_04(d) | Destroyed by Lightning with EMDS Last Messages --------------- 13387_ Penetrated by EMDS Slug. 13392_ System corrupted: Matter fused (-6). 13392_ Acquired Lgt. Antimatter Reactor. 13393_ Penetrated by EMDS Slug. 13394_ Dropped Adv. Heat Sink. 13395_ Dropped Hcp. Storage Unit. 13395_ Penetrated by EMDS Slug. 13395_ Dropped Adv. Matter Compressor. 13396_ Penetrated by EMDS Slug. 13396_ Y-64 Sentinel misfires. 13398_ Penetrated by EMDS Slug. 13399_ Penetrated by Slug. 13399_ Penetrated by EMDS Slug. 13401_ Penetrated by Slug. 13401_ Penetrated by EMDS Slug. 13402_ The unstable cave ceiling collapses. 13402_ I-47 Archangel crushed by falling debris. 13402_ I-47 Archangel system corrupted by crushing effect. 13403_ The unstable cave ceiling collapses. 13404_ Penetrated by EMDS Slug. Map ----- +----------------------------------------------------+ | ?????????????????????????????# # ####### | | ?????????????????????????????########### #% | | ???????????????????????????????????????# # | | ???????????????????????????????????????# # """" | | ???????????????????????????????????????# + """" | | ???????????????????????????????????????# # """" | | ???????????????????????????????????????# #%"""" | | ???????????????????????????????????????# # | | ???????????????????????????????????????# # """" | | ???????????????????????????????????????# # """" | | ???????????????????????????????????????# # """" | | ???????????????????????????????????????# # """" | | ???????????????????????????????????????##### | | ???????????????????????????????????????????# | | ???????????????????????????????????????????####### | | ???????????????????????????????????????????? ????? | | ????????????????????????????????????????????###### | | ?????????????u????????????????????????????### | | ????????????? u#########?????####????????# # | | ????????????? ?????? #????####"""# | | ??????????????? ??#### ####?# "#% | | ?????????????????# ??# ## #?#!! ""|!%! | | ?????????????????+ ### ###! !"*%=! | | ????????????????????# !] # # "!/##+# | | ????????????????????#=%%]; ; #%=**%! | | ????????????????????#==%]@;;;;;;!!;;i; = #=%[%=! | | ??????????????????# ; ]]];;! !]%!! h; | +%!##+# | | ??????????????????# ; ]=;;!% !=%=!!h;;h####=%##*! | | ??????????????????##; ; * *[%!AhhR# ]#%*##* | | ???????????????????## ##;;; !== h;;#"!%!=%==!= | | ????????????????????# # ; h! %!!%|!=%!* | | ????????????????????#?# ; h!! ![%!*!!!! | | ??????????????????????# ; !;"""!!%=%!] | | ??????????????????????# ; ; #"==#! | | ??????????????????????## ; ; ####*["# | | ??????????????????????? ; " ??#%*]# | | ??????????????????????###;; " ##?#!*=### | | ???????????????????????? Y;;;;;;;;;""" #??#%*!#?? | | ???????????????????????? " ##??#/=##?? | | ???????????????????????? ;;;;" " #???!%[!??? | | ?????????????????????????;# " "####??? =%!??? | | ??????????????????????????# ##" "???????"%*"??? | | ??????????????????????????##?#""""""??????? =! G?? | | ????????????????????????????? ???????" ""?? | | ?????????????????????????????? ??????? "?? | | ????????????????????????????????? ???????? ??? | | ???????????????????????????????????????????? ??? | | ????????????????????????????????????????????###??? | | | | | +----------------------------------------------------+ Best States ------------- Heat Dissipation 119 Coolant Potential 65 Energy Generation 61 Energy Capacity 815 Matter Stores 595 Matter Capacity 700 Sight Range 16 Robot Scan Range 13 Terrain Scan Density 10 Base Temperature (-) 200 Armor Coverage 600 Resistance: KI 35 Resistance: TH 35 Resistance: EX 35 Resistance: EM 35 Resistance: I 35 Resistance: S 35 Resistance: P 35 Weapon Cycling 20 Evasion (%) 50 Targeting Accuracy 6 Target Analysis 6 Recoil Reduction 4 Energy Filtering 30 Particle Charging 20 Offensive Hacking 30 Item Schematics ----------------- None Robot Schematics ------------------ None Fabricated ------------ B-60 Warrior | x3 | -5/Factory | Preloaded Alien Tech Used ----------------- None Achievements -------------- Exterminator I Survived The Infestation Left-hand Path Quantum Hacking Revising The Future Challenges ------------ None Game ------ Seed DroneColdRecalibrator Manual? 0 Play Time 02:23:51 Cumulative 18.4 hours Start 2020.11.22 @ 16:57:22 End 2020.11.22 @ 19:37:17 Sessions 1 Manual Loads 0 Difficulty Explorer Special Mode Halloween2020/ForbiddenLore Game No. 11 Rogue 4 Adventurer 0 Explorer 7 Win Type - Total 1 Types 1/0/0/0/0/0/0/0/0 Lore% 34 Gallery% 32 Achievement% 31 Wizard Run 0 Options --------- ASCII 0 Keyboard 0 Movement Numpad Keybinds 0 Fullscreen 2 Font 18/SmallcapsGlow Map View 76x50 Tactical HUD 1 Map Filters NONE Filters NONE Steam 1 RUN: 234e184d-b33e-4792-92de-1cf6e5ae06ce